[Event "Chinese League Division-A 2024"]
[Site "Fuling Chongqing"]
[Date "2024.07.07"]
[Round "10.12"]
[White "Xu, Jun"]
[Black "Lou, Yiping"]
[Result "0-1"]
[ECO "E35"]
[WhiteElo "2471"]
[BlackElo "2442"]
[Annotator "TA"]
[PlyCount "104"]
[EventDate "2024.06.28"]
[EventType "team-tourn"]
[EventCountry "CHN"]
[SourceTitle "playchess.com"]
[Source "ChessBase"]
[SourceQuality "1"]
[TimeControl "40/5400+30:1800+30"]

{[%evp 13,104,14,22,17,22,8,12,14,10,0,0,0,0,-28,-31,-74,-59,-239,-225,-229,-144,-164,-162,-131,-88,-153,-159,-152,-139,-166,-166,-155,-157,-232,-230,-246,-245,-233,-237,-289,-289,-272,-281,-265,-234,-230,-229,-228,-229,-214,-236,-245,-243,-256,-256,-254,-240,-290,-280,-377,-382,-381,-379,-372,-375,-371,-372,-372,-336,-343,-343,-335,-329,-345,-326,-446,-448,-441,-412,-569,-567,-575,-569,-522,-429,-573,-563,-607,-602,-1238,-1214,-1044,-1037]} 1. d4 {[%emt 0:00:04]} Nf6 {[%emt 0:00:06]} 2. c4 {[%emt 0:00:04]} e6 {[%emt 0:00:05]} 3. Nc3 {[%emt 0:00:27]} Bb4 {[%emt 0:00:25]} 4. Qc2 {[%emt 0:00:44]} d5 {[%emt 0:00:54]} 5. cxd5 {[%emt 0:00:11]} exd5 {[%emt 0:00:13]} 6. Bg5 {[%emt 0:01:14]} h6 {[%emt 0:00:06]} 7. Bh4 {[%emt 0:00:08]} O-O {[%emt 0:00:36]} 8. e3 {[%emt 0:00:51]} Re8 {[%emt 0:00:06]} 9. a3 {[%emt 0:05:12]} Bxc3+ {[%emt 0:08:48]} 10. Qxc3 {[%emt 0:00:23] The position is equal.} Bf5 {[%emt 0:00:06]} 11. Nf3 {[%emt 0:05:12]} Nbd7 {[%emt 0:00:30]} 12. Nd2 {[%emt 0:00:30]} Rc8 {[%emt 0:02:32]} 13. Be2 {[%emt 0:13:34]} c5 {[%emt 0:04:08]} 14. O-O {[%emt 0:00:21]} Qb6 {[%emt 0:02:37]} 15. Nf3 $2 {[%emt 0:25:57]} (15. Bxf6 $15 Nxf6 (15... Qxf6 16. Nf3 $11) 16. dxc5 Rxc5 17. Qb3) 15... Ne4 $19 {[%emt 0:02:33]} 16. Qe1 {[%emt 0:00:02]} c4 {[%emt 0:04:51]} 17. Qb4 {[%emt 0:01:43]} g5 {[%emt 0:05:15]} 18. Bg3 {[%emt 0:00:09]} h5 {[%emt 0:00:16] White must now prevent ...h4. Black is more active.} 19. h4 {[%emt 0:12:25]} ({White should try} 19. h3) 19... g4 $1 $36 {[%emt 0:08:15][%mdl 2048] Strongly threatening ...Nxg3. Keeping White busy.} 20. Ne5 {[%emt 0:04:45]} Nf8 {[%emt 0:03:50]} 21. Bh2 {[%emt 0:01:26]} Qxb4 {[%emt 0:08:30]} 22. axb4 {[%emt 0:01:37][%cal Of2f3]} c3 {[%emt 0:00:05]} 23. bxc3 {[%emt 0:13:46]} (23. Nd3 $17 {was worth a try.}) 23... Nxc3 $19 {[%emt 0:00:59]} 24. Rfe1 {[%emt 0:05:25]} Nxe2+ {[%emt 0:01:22]} 25. Rxe2 {[%emt 0:00:01][%cal Of2f3]} f6 {[%emt 0:00:07]} 26. b5 {[%emt 0:00:17]} fxe5 {[%emt 0:00:35]} 27. Bxe5 {[%emt 0:00:05]} Bd3 {[%emt 0:03:26]} 28. Rb2 {[%emt 0:00:02]} Nd7 {[%emt 0:02:27]} 29. Bf4 {[%emt 0:01:17]} a6 {[%emt 0:03:51]} 30. bxa6 {[%emt 0:00:07]} Bxa6 {[%emt 0:00:05]} 31. Ra5 {[%emt 0:00:38] [#]} Nf6 {[%emt 0:00:43][%cal Og4g3]} 32. Kh2 {[%emt 0:01:12]} Rc6 {[%emt 0:06:36]} 33. Bg5 {[%emt 0:01:24]} b5 {[%emt 0:06:35]} 34. f3 {[%emt 0:02:03]} Kf7 {[%emt 0:09:08]} 35. Rba2 {[%emt 0:00:57]} Ree6 {[%emt 0:00:17]} 36. Bxf6 {[%emt 0:00:45]} Kxf6 {[%emt 0:01:03]} 37. e4 {[%emt 0:00:02] [#]} Rb6 $1 {[%emt 0:00:16]} (37... dxe4 $2 {perishes.} 38. d5 gxf3 (38... g3+ $2 39. Kxg3 Rb6 40. dxe6 $18) 39. dxc6 $16) 38. exd5 {[%emt 0:00:26]} Red6 {[%emt 0:00:09]} 39. fxg4 {[%emt 0:00:04]} hxg4 {[%emt 0:00:08]} 40. Kg3 {[%emt 0:00:00]} Bc8 {[%emt 0:00:00][%cal Ob5b4]} 41. Ra8 {[%emt 0:02:53]} Bd7 {[%emt 0:03:46][%cal Ob5b4]} 42. Rf2+ {[%emt 0:01:31]} Ke7 {[%emt 0:00:21]} 43. Re2+ {[%emt 0:01:04]} Kf7 {[%emt 0:00:05]} 44. Rf2+ {[%emt 0:00:16]} Rf6 {[%emt 0:00:13] ...Rxf2 is the strong threat.} 45. Re2 {[%emt 0:00:50]} b4 {[%emt 0:01:51]} 46. Ra7 {[%emt 0:02:05]} Rfd6 {[%emt 0:00:17] Black is clearly winning.} 47. Ra5 {[%emt 0:00:19]} b3 {[%emt 0:00:42] Threatens to win with ...b2.} 48. Rb2 {[%emt 0:00:02]} Rb4 {[%emt 0:02:03]} 49. Kf4 {[%emt 0:00:54]} Kf6 {[%emt 0:00:05]} (49... Rxd4+ $2 {too greedy.} 50. Ke5 $18) 50. Ke3 {[%emt 0:00:43]} Bf5 {[%emt 0:01:07]} 51. Kd2 {[%emt 0:01:37]} Rxd4+ {[%emt 0:00:45]} 52. Kc3 {[%emt 0:00:01]} R4xd5 {[%emt 0:00:16] Weighted Error Value: White=0.45/Black=0.08 (flawless) .  Loses game:     	White=1     	---        Mistake:       	White=2     	---        Inaccurate:     	White=7     	Black=2      OK:         	White=12    	Black=24     Best:        	White=1     	Black=2      Strong:       	---       	Black=2} 0-1

[Event "Chinese League Division-A 2024"]
[Site "Fuling Chongqing"]
[Date "2024.07.07"]
[Round "10.13"]
[White "Meng, Yihan"]
[Black "Lin, Chen"]
[Result "1-0"]
[ECO "B01"]
[WhiteElo "2268"]
[BlackElo "2484"]
[Annotator "TA"]
[PlyCount "73"]
[EventDate "2024.06.28"]
[EventType "team-tourn"]
[EventCountry "CHN"]
[SourceTitle "playchess.com"]
[Source "ChessBase"]
[SourceQuality "1"]
[TimeControl "40/5400+30:1800+30"]

{[%evp 14,73,38,0,8,10,8,15,28,17,28,33,72,41,92,8,12,-20,-11,-15,-8,-6,-17,-8,-6,-4,0,0,0,-84,-76,-108,-18,-143,-149,-157,-133,-209,-69,-141,261,268,287,344,316,315,572,522,769,839,789,0,477,0,888,785,1043,952,29971,6103,5210,666]} 1. e4 {[%emt 0:00:03]} d5 {[%emt 0:00:48]} 2. exd5 {[%emt 0:00:28]} Nf6 {[%emt 0:00:33]} 3. d4 {[%emt 0:00:09]} Nxd5 {[%emt 0:00:50]} 4. Nf3 {[%emt 0:00:10]} g6 {[%emt 0:01:21]} 5. c4 {[%emt 0:02:21]} Nb6 {[%emt 0:00:19]} 6. Be2 {[%emt 0:01:49]} Bg7 {[%emt 0:00:26]} 7. O-O {[%emt 0:00:48]} O-O {[%emt 0:01:45]} 8. h3 {[%emt 0:02:59]} c5 {[%emt 0:06:40]} 9. d5 {[%emt 0:02:00]} e6 {[%emt 0:00:23][%cal Re6d5]} 10. Bg5 {[%emt 0:24:07]} Qd6 {[%emt 0:02:23] The position is equal.} 11. Nc3 {[%emt 0:01:03]} exd5 {[%emt 0:06:39]} 12. cxd5 {[%emt 0:03:13]} Bf5 {[%emt 0:00:23]} 13. Re1 {[%emt 0:09:12]} Re8 {[%emt 0:03:39]} (13... h6 $14 14. Bh4 Bxc3 15. bxc3 g5) 14. Bb5 {[%emt 0:11:48]} (14. a4 $1 $16 {[%cal Ra4a5]}) 14... N8d7 {[%emt 0:13:15]} (14... Rxe1+ {simplifies} 15. Qxe1 N8d7 16. Rd1 c4) 15. g4 {[%emt 0:01:24]} Bxc3 {[%emt 0:06:32]} 16. bxc3 {[%emt 0:00:10]} Rxe1+ {[%emt 0:11:50]} 17. Qxe1 {[%emt 0:02:19]} Qxd5 {[%emt 0:01:09]} 18. Qe3 {[%emt 0:02:17]} Be6 {[%emt 0:10:25]} 19. Re1 {[%emt 0:00:42]} a6 {[%emt 0:06:39]} 20. Bf1 {[%emt 0:00:35]} Re8 {[%emt 0:00:37][%cal Of7f6]} 21. Bg2 {[%emt 0:14:24]} (21. Qf4 $11) 21... f6 {[%emt 0:04:48][%cal Oe6f7] Strongly threatening ...Bf7!} 22. Bh6 {[%emt 0:04:58][%cal Of3g5]} Bf7 {[%emt 0:00:48]} (22... Qxa2 $17 {Threatens to win with ...Bf7.} 23. Qc1 Bf7 24. Rxe8+ Bxe8) 23. Qc1 {[%emt 0:01:14]} (23. Qxe8+ $1 $11 Bxe8 24. Ng5) 23... Rxe1+ $17 {[%emt 0:01:18]} (23... Qxa2 24. Rxe8+ Bxe8 25. g5 $15) 24. Qxe1 {[%emt 0:00:45][%cal Of3g5]} Qe6 {[%emt 0:00:24]} 25. Qc1 {[%emt 0:06:17]} (25. a3 $17) 25... g5 {[%emt 0:05:32]} (25... Qxa2 $19 {...a5 would now be deadly.} 26. Nd2 g5 27. Bxb7 a5) 26. a4 {[%emt 0:05:26]} ({White should play} 26. Nxg5 $1 $15 fxg5 27. Qxg5+ Bg6 28. Bxb7) 26... Nc4 $2 {[%emt 0:04:21][%mdl 8192] [#]} (26... a5 $1 $17 {[%cal Of7g6] and life is bright. aiming for ...Bg6!} 27. Qc2 Bg6) 27. Nxg5 $1 $18 {[%emt 0:00:59][%mdl 512]} Qd6 {[%emt 0:02:22]} ({Of course not} 27... fxg5 28. Qxg5+ Qg6 (28... Bg6 $2 29. Bd5 $18) 29. Qd8+ (29. Bxb7 $2 Qxg5 30. Bxg5 a5 $19) 29... Be8 30. Bd5+ (30. Bxb7 Nf6 $11) 30... Kh8 31. Bxc4 $18) (27... Qe5 28. Nxf7) 28. Nxf7 {[%emt 0:00:18]} Kxf7 {[%emt 0:00:04]} 29. Qb1 {[%emt 0:00:36] Repels Qd3} Kg8 {[%emt 0:00:45]} (29... Ke8 {was worth a try.} 30. Qxb7 (30. Qxh7 b5 $18) 30... Qd1+ 31. Bf1 a5) 30. Qxb7 {[%emt 0:00:50]} Qd1+ {[%emt 0:00:04]} 31. Kh2 {[%emt 0:00:05] White threatens Bd5+ and mate.} Qd6+ {[%emt 0:00:06]} 32. Kg1 {[%emt 0:00:25] Threatening mate with Bd5+.} Qd1+ {[%emt 0:00:03]} 33. Kh2 {[%emt 0:00:10]} (33. Bf1 $142) 33... Qd6+ {[%emt 0:00:03] [#]} 34. f4 $1 {[%emt 0:00:12]} Ne3 {[%emt 0:00:03] Wards off Bd5+} 35. Qe4 {[%emt 0:00:50]} Nxg2 {[%emt 0:00:25]} 36. Qe8+ {[%emt 0:00:24]} (36. Qc4+ $142 Kh8 37. Qf7 (37. Kxg2 Qd2+ 38. Kf3 Qh2 $16) 37... Qxf4+ 38. Bxf4 Nxf4 39. Qe8+ (39. Qxd7 Ng6 $18) 39... Kg7 40. Qxd7+ Kh6 41. Qf7) 36... Nf8 {[%emt 0:00:01]} 37. Kxg2 {[%emt 0:01:18] Weighted Error Value: White=0.66/Black=0.83.  Loses game:     	---       	Black=1      Mistake:       	White=5     	Black=4      Inaccurate:     	White=2     	Black=3      OK:         	White=10    	Black=7      Best:        	---       	Black=2      Strong:       	White=1     	---        Brilliant:      	White=1     	---} 1-0

[Event "Chinese League Division-A 2024"]
[Site "Fuling Chongqing"]
[Date "2024.07.07"]
[Round "10.14"]
[White "Guo, Qi"]
[Black "Zhang, Xiaowen"]
[Result "1-0"]
[ECO "D37"]
[WhiteElo "2362"]
[BlackElo "2261"]
[Annotator "TA"]
[PlyCount "87"]
[EventDate "2024.06.28"]
[EventType "team-tourn"]
[EventCountry "CHN"]
[SourceTitle "playchess.com"]
[Source "ChessBase"]
[SourceQuality "1"]
[TimeControl "40/5400+30:1800+30"]

{[%evp 12,87,30,11,24,27,24,26,27,22,27,36,33,18,33,-10,-20,-36,0,0,0,0,0,0,26,0,27,31,26,32,28,33,50,37,45,41,37,47,36,43,44,18,49,56,161,147,146,140,151,108,166,162,166,166,166,166,166,166,221,217,758,660,835,705,697,677,1572,1584,4960,5035,4960,1688,2197,2175,29966,29971,5102,903]} 1. d4 {[%emt 0:00:03]} d5 {[%emt 0:00:08]} 2. c4 {[%emt 0:00:05]} e6 {[%emt 0:00:04]} 3. Nf3 {[%emt 0:00:04]} Nf6 {[%emt 0:00:06]} 4. Nc3 {[%emt 0:00:05]} Be7 {[%emt 0:00:49]} 5. Bf4 {[%emt 0:00:09]} O-O {[%emt 0:00:11]} 6. e3 {[%emt 0:00:06]} b6 {[%emt 0:01:51]} 7. Be2 {[%emt 0:00:11]} Bb7 {[%emt 0:03:16]} 8. O-O {[%emt 0:00:16]} Nbd7 {[%emt 0:00:04]} 9. cxd5 {[%emt 0:01:07]} Nxd5 {[%emt 0:00:06] White has an edge.} 10. Nxd5 {[%emt 0:00:23]} Bxd5 {[%emt 0:00:05]} 11. Qc2 {[%emt 0:02:24]} c5 {[%emt 0:00:11][%cal Bc7c5,Bc5d4][%mdl 32]} 12. Rfd1 {[%emt 0:13:19]} cxd4 {[%emt 0:04:04]} 13. e4 {[%emt 0:06:59]} Rc8 {[%emt 0:15:29]} 14. Qb1 {[%emt 0:00:09]} Bc4 {[%emt 0:07:53]} 15. Bxc4 {[%emt 0:02:37]} Rxc4 {[%emt 0:00:05]} 16. b3 $36 {[%emt 0:00:06][%mdl 2048] White is pushing.} Rc8 {[%emt 0:13:39]} 17. Rxd4 {[%emt 0:00:23]} Bc5 {[%emt 0:00:25]} 18. Rd3 {[%emt 0:01:49] Black must now prevent Qd1.} Qe7 {[%emt 0:05:16] [#]} 19. b4 $1 {[%emt 0:02:45]} Bxb4 {[%emt 0:07:06] [#]} 20. Rxd7 {[%emt 0:00:10]} Qxd7 {[%emt 0:00:02]} 21. Qxb4 {[%emt 0:00:08]} Rfd8 {[%emt 0:00:22][%cal Od7d1]} 22. h4 {[%emt 0:03:32]} Qd3 {[%emt 0:02:30]} 23. Be3 {[%emt 0:10:57]} Qc3 {[%emt 0:13:38]} 24. Qxc3 {[%emt 0:01:28]} Rxc3 {[%emt 0:00:04]} 25. a4 {[%emt 0:00:04]} Rc4 {[%emt 0:01:57]} 26. Nd2 {[%emt 0:01:07]} Rb4 {[%emt 0:05:51]} 27. a5 {[%emt 0:01:27]} f5 {[%emt 0:01:21]} (27... h6 $14) 28. axb6 {[%emt 0:07:33]} axb6 {[%emt 0:00:01]} 29. Ra7 {[%emt 0:01:48]} fxe4 {[%emt 0:03:24]} 30. Rb7 {[%emt 0:00:46] White is more active.} Rd6 {[%emt 0:01:15]} (30... h5 $16 31. Kh2 (31. Bxb6 $2 {loses.} Rxd2 32. Rb8+ Kf7 $19) 31... Rd5) 31. g4 {[%emt 0:00:09][%mdl 1024] White has strong compensation.} h6 {[%emt 0:00:44]} 32. Kg2 {[%emt 0:00:13]} Kf8 {[%emt 0:04:42]} 33. h5 {[%emt 0:08:26]} Kg8 {[%emt 0:05:56]} 34. Kg3 {[%emt 0:02:42]} Kh7 {[%emt 0:01:09]} (34... e5 $142 35. Kg2 Kf8) 35. Kf4 $18 {[%emt 0:00:56]} Rxd2 $2 {[%emt 0:00:43]} (35... Kg8 36. Rb8+ (36. Nxe4 Rd8 $18) 36... Kf7) 36. Bxd2 {[%emt 0:00:23][%mdl 4096] Endgame. KRB-KR} e3+ {[%emt 0:00:02]} 37. Kxe3 $1 {[%emt 0:00:14]} (37. Bxb4 exf2 38. Rxb6 f1=Q+ (38... f1=B 39. Rxe6 Kg8 40. Re7 $18) 39. Ke5 Qd3 40. Rxe6 Qe3+ (40... Qb5+ $2 41. Kf4 $19) 41. Kd5 Qb3+ 42. Ke5 Qxb4 $19) 37... Rxg4 {[%emt 0:00:02]} 38. Bc3 {[%emt 0:03:44][%cal Oc3d4] And now Bd4! would win.} Kg8 {[%emt 0:00:23]} 39. Rxb6 {[%emt 0:00:44]} Rg5 {[%emt 0:00:25]} 40. Rxe6 {[%emt 0:00:00]} Kf7 {[%emt 0:00:00]} 41. Re5 {[%emt 0:00:46] White threatens Rxg5 and mate.} Rg1 {[%emt 0:04:00]} 42. Ra5 {[%emt 0:00:30]} g6 {[%emt 0:00:32]} 43. Ra7+ {[%emt 0:00:11]} Ke8 {[%emt 0:00:31]} 44. Rg7 {[%emt 0:00:18] Weighted Error Value: White=0.07 (flawless) /Black=0.43.  Mistake:       	---       	Black=4      Inaccurate:     	White=3     	Black=3      OK:         	White=17    	Black=5      Best:        	---       	Black=2      Brilliant:      	White=1     	---} 1-0

[Event "Chinese League Division-A 2024"]
[Site "Fuling Chongqing"]
[Date "2024.07.07"]
[Round "10.15"]
[White "Ni, Shiqun"]
[Black "Gao, Muziyan"]
[Result "1-0"]
[ECO "B51"]
[WhiteElo "2352"]
[BlackElo "1943"]
[Annotator "TA"]
[PlyCount "107"]
[EventDate "2024.06.28"]
[EventType "team-tourn"]
[EventCountry "CHN"]
[SourceTitle "playchess.com"]
[Source "ChessBase"]
[SourceQuality "1"]
[TimeControl "40/5400+30:1800+30"]

{[%evp 20,107,39,31,38,35,35,44,25,34,57,50,47,45,57,42,53,50,66,19,22,14,32,28,22,25,22,18,19,17,53,47,32,51,39,37,56,53,36,48,61,41,126,95,217,204,276,275,285,280,399,374,442,262,225,170,440,231,230,235,222,169,201,116,195,184,222,218,470,451,483,179,210,212,213,214,462,462,462,256,282,285,325,277,495,501,863,854,808,790]} 1. e4 {[%emt 0:00:02]} c5 {[%emt 0:00:07]} 2. Nf3 {[%emt 0:00:06]} Nc6 {[%emt 0:00:11]} 3. Bb5 {[%emt 0:00:09]} d6 {[%emt 0:00:30]} 4. O-O {[%emt 0:00:08]} Bd7 {[%emt 0:00:16]} 5. Re1 {[%emt 0:00:15]} Nf6 {[%emt 0:00:22]} 6. c3 {[%emt 0:00:33]} a6 {[%emt 0:00:29]} 7. Bf1 {[%emt 0:00:05]} Bg4 {[%emt 0:00:26]} 8. h3 {[%emt 0:00:18]} Bxf3 {[%emt 0:00:19]} 9. Qxf3 {[%emt 0:00:02]} g6 {[%emt 0:00:21]} 10. d3 {[%emt 0:00:07]} Bg7 {[%emt 0:00:27]} 11. Be3 {[%emt 0:00:17]} Nd7 {[%emt 0:03:18]} 12. Nd2 {[%emt 0:00:18]} O-O {[%emt 0:04:09]} 13. Qd1 {[%emt 0:00:13]} b5 {[%emt 0:13:49][%cal Bb7b5,Bb5b4][%mdl 32] White is slightly better.} 14. Nf3 {[%emt 0:00:07]} b4 {[%emt 0:04:17]} 15. Qa4 {[%emt 0:00:45]} Qc7 {[%emt 0:12:16]} 16. d4 {[%emt 0:00:23]} Nb6 {[%emt 0:00:46]} 17. Qc2 {[%emt 0:03:24]} bxc3 {[%emt 0:03:57]} 18. bxc3 {[%emt 0:00:56]} Rfc8 {[%emt 0:20:35]} 19. Rec1 {[%emt 0:27:09]} (19. dxc5 $14 dxc5 20. Rab1 (20. Bxc5 Ne5 $11)) 19... Na5 $11 {[%emt 0:03:02]} 20. Qd1 {[%emt 0:01:49]} Qc6 {[%emt 0:08:58]} 21. Nd2 {[%emt 0:05:27]} Qa4 {[%emt 0:08:27]} 22. Qxa4 {[%emt 0:19:17]} Nxa4 {[%emt 0:00:02]} 23. Nb3 {[%emt 0:00:06]} Nc6 {[%emt 0:04:05][%cal Ba5c6,Bc6b4,Bb4a2][%mdl 32]} 24. Rab1 {[%emt 0:07:01]} cxd4 {[%emt 0:09:48]} 25. cxd4 {[%emt 0:00:03]} Nb4 {[%emt 0:00:39]} 26. Rxc8+ {[%emt 0:07:08]} Rxc8 {[%emt 0:00:02]} 27. Na5 {[%emt 0:00:12]} Nxa2 {[%emt 0:01:33]} 28. Bxa6 {[%emt 0:00:02]} Ra8 {[%emt 0:00:46][%cal Oh7h5] [#] aiming for ...h5!} 29. Nc6 $1 {[%emt 0:00:01]} Bf8 {[%emt 0:00:32]} (29... Rxa6 30. Rb8+ Bf8 31. Bh6 (31. Nxe7+ Kg7 $17) (31. Nxe7+ Kg7 $17)) 30. Bb7 {[%emt 0:05:09] White is more active.} Re8 {[%emt 0:00:15]} (30... N4c3 $1 $14) 31. f3 $36 {[%emt 0:00:04][%mdl 2048] White is in control.} f5 {[%emt 0:00:44]} (31... N2c3 $16 32. Rb3 Nd1) 32. Rb3 $18 {[%emt 0:15:28]} e5 {[%emt 0:00:30]} 33. Bd2 {[%emt 0:04:40]} exd4 {[%emt 0:00:26]} 34. Nxd4 {[%emt 0:00:03]} Bg7 {[%emt 0:00:33]} (34... fxe4 $142 35. Bd5+ (35. Bxe4 Bg7 $18) (35. fxe4 Nc5 $18) 35... Kh8) 35. Nb5 {[%emt 0:01:30]} Rb8 {[%emt 0:00:29]} 36. Nxd6 {[%emt 0:00:20]} (36. Bd5+ $142 Kf8 37. Ra3 (37. Nxd6 Rxb3 38. Bxb3 N2c3 $18) 37... Rxb5 38. Rxa4 (38. Bxa2 Nb6 $16)) 36... Kf8 {[%emt 0:00:29]} 37. Be3 {[%emt 0:02:20] Inhibits Nc5.} Ke7 $2 {[%emt 0:00:34]} (37... N2c3 38. exf5 Bd4) 38. Nc4 {[%emt 0:01:49]} (38. Nc8+ $142 Kf8 39. Rd3) 38... fxe4 {[%emt 0:00:27]} 39. fxe4 {[%emt 0:00:11] And now Na5 would win.} N2c3 {[%emt 0:00:32][%cal Og7d4]} 40. Na5 {[%emt 0:00:00] Strongly threatening Nc6+.} Rf8 {[%emt 0:00:00]} 41. Ba6 {[%emt 0:04:16] Prevents Ne2+} ({Better is} 41. g4 $18) 41... Ke6 {[%emt 0:15:30]} (41... Re8 $16) 42. Rb7 {[%emt 0:03:10]} Be5 {[%emt 0:01:04]} 43. Rxh7 {[%emt 0:11:54]} Nxe4 $2 {[%emt 0:00:53] [#]} (43... Ra8) 44. Bc4+ $1 {[%emt 0:00:38]} Kd6 {[%emt 0:04:14]} 45. Bd3 $2 {[%emt 0:10:21]} (45. Nb7+ Kc6 46. Re7) 45... Kd5 {[%emt 0:03:57]} 46. Rd7+ {[%emt 0:01:20]} Nd6 {[%emt 0:04:45]} 47. Nc4 {[%emt 0:00:51]} Nc3 $2 {[%emt 0:01:47]} (47... Bg3 48. Nxd6 Bxd6 49. Bxg6 Ke6) 48. Nxe5 {[%emt 0:00:26]} Kxe5 {[%emt 0:00:02]} 49. Bxg6 {[%emt 0:00:48] A strong pair of Bishops.} (49. Bc5 $142 Rf6 50. Bxd6+ Rxd6 51. Rxd6 Kxd6 52. Bxg6) 49... Ke6 {[%emt 0:00:19]} 50. Ra7 {[%emt 0:00:32]} Nc4 {[%emt 0:02:05]} 51. Bc5 {[%emt 0:00:58]} Rf4 {[%emt 0:01:20]} (51... Rc8 {was worth a try.} 52. Ra6+ Ke5) 52. g3 {[%emt 0:01:17] White is clearly winning.} Rf6 {[%emt 0:00:32]} (52... Ne2+ $142 53. Kh2 Nxg3 54. Kxg3 Rf1 55. Ra6+ Ke5) 53. Ra6+ {[%emt 0:00:12]} Ke5 {[%emt 0:00:32] [#]} 54. Bd4+ $1 {[%emt 0:00:04][%mdl 512] Weighted Error Value: White=0.34/Black=0.50.  Mistake:       	White=6     	Black=9      Inaccurate:     	---       	Black=2      OK:         	White=18    	Black=14     Best:        	White=1     	Black=2      Strong:       	White=1     	---} 1-0

[Event "Chinese League Division-A 2024"]
[Site "Fuling Chongqing"]
[Date "2024.07.07"]
[Round "10.16"]
[White "Huang, Renjie"]
[Black "Bai, Jinshi"]
[Result "1/2-1/2"]
[ECO "C67"]
[WhiteElo "2480"]
[BlackElo "2564"]
[Annotator "TA"]
[PlyCount "60"]
[EventDate "2024.06.28"]
[EventType "team-tourn"]
[EventCountry "CHN"]
[SourceTitle "playchess.com"]
[Source "ChessBase"]
[SourceQuality "1"]
[TimeControl "40/5400+30:1800+30"]

{[%evp 9,60,17,4,0,0,0,0,0,0,0,0,0,0,0,0,0,0,11,6,4,10,13,7,6,0,16,11,12,7,8,8,10,11,4,6,10,8,4,4,4,4,0,0,0,0,0,0,0,0,0,0,0,0]} 1. e4 {[%emt 0:00:01]} e5 {[%emt 0:00:12]} 2. Nf3 {[%emt 0:00:14]} Nc6 {[%emt 0:00:26]} 3. Bb5 {[%emt 0:00:19]} Nf6 {[%emt 0:00:38]} 4. O-O {[%emt 0:00:37]} Nxe4 {[%emt 0:00:30]} 5. Re1 {[%emt 0:00:36]} Nd6 {[%emt 0:00:44] The position is equal.} 6. a4 {[%emt 0:01:05]} Be7 {[%emt 0:05:17]} 7. Nc3 {[%emt 0:02:04]} O-O {[%emt 0:06:29]} 8. d4 {[%emt 0:04:12]} exd4 {[%emt 0:07:54]} 9. Nd5 {[%emt 0:00:31] [#] Black must now prevent Bxc6.} Re8 {[%emt 0:00:40]} 10. Bf4 {[%emt 0:02:02]} b6 {[%emt 0:04:47]} 11. Nxd4 {[%emt 0:04:12]} Nxd4 {[%emt 0:08:39]} 12. Qxd4 {[%emt 0:00:06][%cal Od5c7] Threatens to win with Nxc7!} Bf8 {[%emt 0:01:29]} 13. Rxe8 {[%emt 0:04:46]} Nxe8 {[%emt 0:00:14]} 14. Qe4 {[%emt 0:00:28] Strongly threatening Bd3. Black is weak on the light squares} Bb7 {[%emt 0:04:39] Hoping for ...Bxd5.} 15. Bd3 {[%emt 0:01:40][%csl Gd3][%cal Re4h7]} g6 {[%emt 0:01:46] [#]} 16. Qxe8 $1 {[%emt 0:01:25]} Bxd5 {[%emt 0:01:56]} 17. Qxd8 {[%emt 0:00:23]} Rxd8 {[%emt 0:00:07]} 18. Bxc7 {[%emt 0:00:04]} Rc8 {[%emt 0:00:26]} 19. Be5 {[%emt 0:00:15]} Bg7 {[%emt 0:01:38]} 20. Bxg7 {[%emt 0:00:24]} Kxg7 $11 {[%emt 0:00:06][%mdl 4096] Endgame. KRB-KRB} 21. a5 {[%emt 0:01:50]} Bc4 {[%emt 0:02:26]} 22. Bxc4 {[%emt 0:00:52]} Rxc4 {[%emt 0:00:06]} 23. axb6 {[%emt 0:00:06]} axb6 {[%emt 0:00:06] KR-KR} 24. c3 {[%emt 0:00:08]} b5 {[%emt 0:00:47]} 25. Rd1 {[%emt 0:00:14]} b4 {[%emt 0:00:14]} 26. cxb4 {[%emt 0:00:08]} Rxb4 {[%emt 0:00:04]} 27. Rxd7 {[%emt 0:00:04]} Rxb2 {[%emt 0:00:07] ( -> ...Rb1+)} 28. g3 {[%emt 0:00:04]} Rb1+ {[%emt 0:00:26]} 29. Kg2 {[%emt 0:00:03]} Rb2 {[%emt 0:00:05]} 30. Kg1 {[%emt 0:00:05]} Rb1+ {[%emt 0:00:10] Not much happened in this game.   Weighted Error Value: White=0.01 (flawless) /Black=0.00 (flawless) .  OK:         	White=17    	Black=11     Best:        	White=2     	Black=3} 1/2-1/2